fUSD/lending_fUSD_20250302
["ID","MTS","AMOUNT","RATE_DAILY","PERIOD"]
[355160981,1740937901016,-661.62,0.00027363,2]
[355160982,1740937901025,-500.0,0.00027363,2]
[355160983,1740937901036,-500.0,0.00027363,2]
[355160984,1740937901045,-598.23,0.00027363,2]
[355160985,1740937901055,-500.0,0.00027363,2]
[355160986,1740937901064,-500.0,0.00027363,2]
[355160987,1740937901074,-551.39,0.00027363,2]
[355160988,1740937901083,-500.0,0.00027363,2]
[355160989,1740937901093,-500.0,0.00027363,2]
[355160990,1740937901103,-500.0,0.00027363,2]
[355160991,1740937901113,-2139.64,0.00027363,2]
[355160992,1740937901124,-500.0,0.00027363,2]
[355160993,1740937901133,-500.0,0.00027363,2]
[355160994,1740937901143,-666.3,0.00027363,2]
[355160995,1740937901152,-410.69087709,0.00027363,2]
[355160996,1740937901172,-589.30912291,0.00027363,2]
[355160997,1740937901182,-506.21,0.00027363,2]
[355160998,1740937901192,-500.0,0.00027363,2]
[355160999,1740937901201,-1243.74,0.00027363,2]
[355161000,1740937901211,-763.27,0.00027363,2]
[355161001,1740937901228,-551.88,0.00027363,2]
[355161002,1740937901238,-1338.27,0.00027363,2]
[355161003,1740937901247,-580.22,0.00027363,2]
[355161004,1740937901258,-500.0,0.00027363,2]
[355161005,1740937901267,-151.0,0.00027363,7]
[355161006,1740937901277,-500.0,0.00027363,2]
[355161007,1740937901286,-900.63,0.00027363,2]
[355161008,1740937901296,-500.0,0.00027363,2]
[355161009,1740937901305,-248.019775,0.00027363,7]
[355161010,1740937901315,-711.69,0.00027363,2]
[355161011,1740937901326,-248.019775,0.00027363,7]
[355161012,1740937901336,-1990.27,0.00027363,2]
[355161013,1740937901345,-151.0,0.00027363,7]
[355161014,1740937901355,-789.39,0.00027363,2]
[355161015,1740937901365,-230.222455,0.00027363,7]
[355161016,1740937901375,-2000.73,0.00027363,2]
[355161017,1740937901385,-230.222455,0.00027363,7]
[355161018,1740937901394,-561.03,0.00027363,2]
[355161019,1740937901404,-1144.17,0.00027363,2]
[355161020,1740937901413,-500.0,0.00027363,2]
[355161021,1740937901423,-500.0,0.00027363,2]
[355161022,1740937901432,-5401.20239745,0.00027363,7]
[355161023,1740937901483,-250.57229675,0.00027363,7]
[355161024,1740937901494,-4348.2253058,0.00027363,7]
[355161025,1740937901504,-2159.97405063,0.00027363,7]
[355161026,1740937901516,-1135.375005,0.00027363,7]
[355161027,1740937901534,-500.0,0.00024896,2]
[355161028,1740937901545,-5855.963818,0.00027363,7]
[355161029,1740937901557,-848.68712637,0.00027363,7]
[355161030,1740937901566,-812.93,0.00027363,2]
[355161031,1740937901576,-615.1,0.00027363,2]
[355161032,1740937901586,-500.0,0.00027363,2]
[355161033,1740937901596,-623.5,0.00027363,2]
[355161034,1740937901605,-500.0,0.00027363,2]
[355161035,1740937901615,-500.0,0.00027363,2]
[355161036,1740937901623,-604.53287363,0.00027363,2]
[355161037,1740937901636,-158.34712637,0.00027363,2]
[355161038,1740937901645,-181.61026189,0.00027364,2]
[355161039,1740937901655,-151.0,0.00027364,7]
[355161040,1740937901664,-151.0,0.00027364,7]
[355161041,1740937901674,-1650.214993,0.00027364,7]
[355161042,1740937901683,-657.39892874,0.00027364,7]
[355161044,1740938161156,257.31,0.00024045,120]
[355161045,1740938261547,10138.52709595,0.0002002,30]
[355161046,1740938870973,92.59012886,0.00027,120]
[355161047,1740938895335,255.61987114,0.0002654,120]
[355161059,1740939032428,-152.72,0.00019065,2]
[355161060,1740939032439,-387.28,0.00019065,2]
[355161061,1740939032452,-66.87624884,0.00019065,2]
[355161062,1740939032461,-150.0,0.00019243,2]
[355161063,1740939032483,-318.59375116,0.00019422,2]
[355161064,1740939032497,-131.40624884,0.00019422,2]
[355161065,1740939032506,-150.0,0.00020002,2]
[355161066,1740939032516,-682.05702583,0.00020872,2]
[355161067,1740939032527,-300.0,0.00020971,2]
[355161068,1740939032539,-450.0,0.00020972,2]
[355161069,1740939032550,-150.0,0.00020972,2]
[355161070,1740939032561,-450.0,0.00020972,2]
[355161071,1740939032571,-169.03,0.00021918,2]
[355161072,1740939032582,-1069.73,0.00022437,2]
[355161073,1740939032592,-420.0,0.00022812,2]
[355161074,1740939032602,-3001.0,0.000232,2]
[355161075,1740939032614,-150.0,0.00023222,7]
[355161076,1740939032625,-1000.0,0.00023288,2]
[355161077,1740939032637,-336.77672533,0.00023367,2]
[355161078,1740939032651,-240.26327467,0.00023367,2]
[355161079,1740939032661,-6040.81,0.00023369,2]
[355161080,1740939032671,-2000.0,0.00023412,2]
[355161081,1740939032682,-150.0,0.00023468,2]
[355161082,1740939032692,-172.18,0.00023558,2]
[355161083,1740939032703,-158.49,0.00023665,2]
[355161084,1740939032713,-500.0,0.00023791,2]
[355161085,1740939032724,-170.96,0.00023836,2]
[355161086,1740939032736,-250.0,0.00023868,2]
[355161087,1740939032747,-345.91905736,0.000239,3]
[355161088,1740939032757,-23900.0,0.00023904,2]
[355161089,1740939032767,-200.0,0.00024039,2]
[355161090,1740939032778,-345.91905719,0.00024107,3]
[355161091,1740939032789,-1340.418,0.00024209,2]
[355161092,1740939032799,-196.495,0.00024209,2]
[355161093,1740939032809,-345.91905719,0.00024314,3]
[355161094,1740939032819,-162.35,0.00024405,2]
[355161095,1740939032829,-375.94937419,0.00024405,6]
[355161096,1740939032844,-1465.77862581,0.00024405,6]
[355161097,1740939032854,-154.644,0.00024405,6]
[355161098,1740939032867,-390.2899,0.00024444,2]
[355161099,1740939032878,-345.91905719,0.00024521,3]
[355161100,1740939032889,-14.85158317,0.00024569,2]
[355161101,1740939032903,-1097.72946846,0.00024569,2]
[355161102,1740939032915,-6886.09705338,0.00024569,2]
[355161103,1740939032927,-3861.16061818,0.00024569,2]
[355161106,1740939032954,-1059.93963359,0.00024569,2]
[355161108,1740939032965,-5001.27751158,0.00024579,2]
[355161110,1740939032975,-182.42,0.0002458,2]
[355161112,1740939032985,-1120.5641,0.00024696,2]
[355161114,1740939032995,-3089.69456912,0.00024697,2]
[355161116,1740939033012,-1069.73,0.00024701,2]
[355161118,1740939033023,-200.0,0.0002472,2]
[355161120,1740939033034,-345.91905719,0.00024728,3]
[355161121,1740939033046,-6033.2085,0.00024796,2]
[355161123,1740939033057,-1000.0,0.00024796,2]
[355161125,1740939033068,-500.0,0.00024796,2]
[355161128,1740939033079,-500.0,0.00024796,2]
[355161129,1740939033090,-500.0,0.00024796,2]
[355161131,1740939033102,-500.0,0.00024796,2]
[355161133,1740939033114,-500.0,0.00024796,2]
[355161135,1740939033125,-500.0,0.00024796,2]
[355161137,1740939033137,-500.0,0.00024796,2]
[355161139,1740939033149,-500.0,0.00024796,2]
[355161140,1740939033160,-500.0,0.00024796,2]
[355161142,1740939033172,-500.0,0.00024796,2]
[355161144,1740939033183,-500.0,0.00024796,2]
[355161146,1740939033195,-500.0,0.00024796,2]
[355161148,1740939033205,-500.0,0.00024796,2]
[355161150,1740939033216,-500.0,0.00024796,2]
[355161151,1740939033226,-500.0,0.00024796,2]
[355161153,1740939033237,-500.0,0.00024796,2]
[355161155,1740939033247,-596.18,0.00024796,2]
[355161157,1740939033258,-500.0,0.00024796,2]
[355161159,1740939033268,-500.0,0.00024796,2]
[355161161,1740939033278,-500.0,0.00024796,2]
[355161162,1740939033289,-500.0,0.00024796,2]
[355161164,1740939033300,-500.0,0.00024796,2]
[355161166,1740939033311,-500.0,0.00024796,2]
[355161168,1740939033324,-500.0,0.00024796,2]
[355161170,1740939033335,-605.32549857,0.00024796,2]
[355161172,1740939033348,-500.0,0.00024796,2]
[355161173,1740939033359,-500.0,0.00024796,2]
[355161175,1740939033374,-500.0,0.00024796,2]
[355161177,1740939033385,-500.0,0.00024796,2]
[355161179,1740939033396,-645.50781108,0.00024796,2]
[355161181,1740939033406,-500.0,0.00024796,2]
[355161183,1740939033418,-500.0,0.00024796,2]
[355161185,1740939033428,-500.0,0.00024796,2]
[355161186,1740939033439,-500.0,0.00024796,2]
[355161187,1740939033450,-500.0,0.00024796,2]
[355161189,1740939033460,-500.0,0.00024796,2]
[355161190,1740939033471,-500.0,0.00024796,2]
[355161191,1740939033482,-500.0,0.00024796,2]
[355161192,1740939033492,-500.0,0.00024796,2]
[355161193,1740939033502,-500.0,0.00024796,2]
[355161194,1740939033513,-500.0,0.00024796,2]
[355161195,1740939033528,-500.0,0.00024796,2]
[355161196,1740939033539,-500.0,0.00024796,2]
[355161197,1740939033550,-500.0,0.00024796,2]
[355161198,1740939033561,-500.0,0.00024796,2]
[355161199,1740939033572,-500.0,0.00024796,2]
[355161200,1740939033583,-500.0,0.00024796,2]
[355161201,1740939033593,-500.0,0.00024796,2]
[355161202,1740939033604,-500.0,0.00024796,2]
[355161203,1740939033618,-500.0,0.00024796,2]
[355161204,1740939033628,-525.37,0.00024796,2]
[355161205,1740939033639,-500.0,0.00024796,2]
[355161206,1740939033650,-500.0,0.00024796,2]
[355161207,1740939033660,-500.0,0.00024796,2]
[355161208,1740939033670,-500.0,0.00024796,2]
[355161209,1740939033680,-500.0,0.00024796,2]
[355161210,1740939033691,-500.0,0.00024796,2]
[355161211,1740939033701,-500.0,0.00024796,2]
[355161212,1740939033711,-500.0,0.00024796,2]
[355161213,1740939033722,-500.0,0.00024796,2]
[355161214,1740939033732,-500.0,0.00024796,2]
[355161215,1740939033742,-500.0,0.00024796,2]
[355161216,1740939033752,-856.65,0.00024796,2]
[355161217,1740939033762,-500.0,0.00024796,2]
[355161218,1740939033773,-500.0,0.00024796,2]
[355161219,1740939033783,-500.0,0.00024796,2]
[355161220,1740939033794,-500.0,0.00024796,2]
[355161221,1740939033804,-500.0,0.00024796,2]
[355161222,1740939033815,-500.0,0.00024796,2]
[355161223,1740939033826,-500.0,0.00024796,2]
[355161224,1740939033837,-500.0,0.00024796,2]
[355161225,1740939033848,-500.0,0.00024797,2]
[355161226,1740939033859,-500.0,0.00024797,2]
[355161227,1740939033874,-613.98,0.00024797,2]
[355161228,1740939033885,-500.0,0.00024797,7]
[355161229,1740939033896,-500.0,0.00024797,2]
[355161230,1740939033907,-500.0,0.00024797,2]
[355161231,1740939033918,-500.0,0.00024797,2]
[355161232,1740939033929,-500.0,0.00024797,2]
[355161233,1740939033939,-500.0,0.00024797,2]
[355161234,1740939033950,-512.73,0.00024797,2]
[355161235,1740939033961,-289.28,0.00024797,2]
[355161236,1740939033972,-169.19,0.00024797,2]
[355161237,1740939033982,-500.0,0.00024797,2]
[355161238,1740939033992,-500.0,0.00024797,2]
[355161239,1740939034003,-500.0,0.00024797,2]
[355161240,1740939034014,-500.0,0.00024797,2]
[355161241,1740939034025,-535.57816341,0.00024797,2]
[355161242,1740939034035,-340.65,0.00024797,2]
[355161243,1740939034050,-500.0,0.00024797,2]
[355161244,1740939034060,-500.0,0.00024797,2]
[355161245,1740939034070,-500.0,0.00024797,2]
[355161246,1740939034080,-500.0,0.00024797,2]
[355161247,1740939034090,-401.77085273,0.00024797,2]
[355161248,1740939034101,-500.0,0.00024797,2]
[355161249,1740939034111,-500.0,0.00024797,2]
[355161250,1740939034124,-500.0,0.00024797,2]
[355161251,1740939034134,-500.0,0.00024797,2]
[355161252,1740939034144,-500.0,0.00024797,2]
[355161253,1740939034154,-500.0,0.00024797,2]
[355161254,1740939034166,-500.0,0.00024797,2]
[355161255,1740939034177,-500.0,0.00024797,2]
[355161256,1740939034187,-500.0,0.00024797,2]
[355161257,1740939034199,-500.0,0.00024797,2]
[355161258,1740939034210,-500.0,0.00024797,2]
[355161259,1740939034220,-450.87453233,0.00024797,2]
[355161260,1740939034230,-500.0,0.00024797,2]
[355161261,1740939034241,-500.0,0.00024797,2]
[355161262,1740939034251,-500.0,0.00024797,2]
[355161263,1740939034261,-500.0,0.00024797,2]
[355161264,1740939034273,-500.0,0.00024797,2]
[355161265,1740939034283,-500.0,0.00024797,2]
[355161266,1740939034293,-500.0,0.00024797,2]
[355161267,1740939034303,-500.0,0.00024797,2]
[355161268,1740939034313,-500.0,0.00024797,2]
[355161269,1740939034325,-247.0,0.00024815,2]
[355161270,1740939034336,-2500.0,0.0002487,2]
[355161271,1740939034346,-500.0,0.00024896,2]
[355161272,1740939034356,-500.0,0.00024896,2]
[355161273,1740939034371,-505.68863666,0.00024896,2]
[355161274,1740939034382,-505.47724048,0.00024896,2]
[355161275,1740939034392,-502.50531931,0.00024896,2]
[355161276,1740939034403,-345.91905719,0.00024934,4]
[355161277,1740939034415,-170.33757884,0.00024969,2]
[355161278,1740939034426,-2764.77866454,0.0002497,2]
[355161279,1740939034438,-940.9848,0.0002497,2]
[355161280,1740939034449,-3016.9837,0.0002497,2]
[355161281,1740939034459,-1016.9742,0.0002497,2]
[355161282,1740939034470,-5000.0,0.0002497,2]
[355161283,1740939034480,-1000.0,0.00024985,2]
[355161284,1740939034491,-636.95,0.00025059,2]
[355161285,1740939034503,-1205.15026183,0.00025067,10]
[355161286,1740939034514,-500.0,0.00025068,2]
[355161287,1740939034525,-1081.23,0.00025068,2]
[355161288,1740939034537,-1217.42,0.00025068,2]
[355161289,1740939034548,-500.0,0.00025068,2]
[355161290,1740939034559,-1732.71,0.00025068,2]
[355161291,1740939034569,-248.006781,0.00025068,2]
[355161292,1740939034590,-550.93,0.00025068,2]
[355161293,1740939034601,-679.32,0.00025068,2]
[355161294,1740939034611,-822.5,0.00025068,2]
[355161295,1740939034624,-196.854988,0.00025068,2]
[355161296,1740939034635,-625.27,0.00025068,2]
[355161297,1740939034646,-720.38,0.00025068,2]
[355161298,1740939034656,-1866.42,0.00025068,2]
[355161299,1740939034666,-1050.5,0.00025068,2]
[355161300,1740939034677,-930.37,0.00025068,2]
[355161301,1740939034687,-1219.5,0.00025068,2]
[355161302,1740939034698,-629.6,0.00025068,2]
[355161303,1740939034710,-1652.74,0.00025068,2]
[355161304,1740939034721,-518.97,0.00025068,2]
[355161305,1740939034732,-701.89,0.00025068,2]
[355161306,1740939034743,-500.0,0.00025068,2]
[355161307,1740939034754,-500.0,0.00025068,2]
[355161308,1740939034765,-979.63,0.00025068,2]
[355161309,1740939034776,-898.75,0.00025068,2]
[355161310,1740939034787,-500.0,0.00025068,2]
[355161311,1740939034797,-500.0,0.00025068,2]
[355161312,1740939034808,-500.0,0.00025068,2]
[355161313,1740939034819,-632.66,0.00025068,2]
[355161314,1740939034830,-500.0,0.00025068,2]
[355161315,1740939034841,-867.95,0.00025068,2]
[355161316,1740939034852,-500.0,0.00025068,2]
[355161317,1740939034865,-533.61,0.00025068,2]
[355161318,1740939034878,-808.44,0.00025068,2]
[355161319,1740939034891,-500.0,0.00025068,2]
[355161320,1740939034903,-500.0,0.00025068,2]
[355161321,1740939034916,-500.0,0.00025068,2]
[355161322,1740939034928,-500.0,0.00025068,2]
[355161323,1740939034940,-500.0,0.00025068,2]
[355161324,1740939034951,-510.05,0.00025068,2]
[355161325,1740939034962,-500.0,0.00025068,2]
[355161326,1740939034974,-500.0,0.00025068,2]
[355161327,1740939034986,-515.47,0.00025068,2]
[355161328,1740939034996,-500.0,0.00025068,2]
[355161329,1740939035007,-544.53,0.00025068,2]
[355161330,1740939035018,-500.0,0.00025068,2]
[355161331,1740939035030,-500.0,0.00025068,2]
[355161332,1740939035040,-614.19660687,0.00025068,2]
[355161333,1740939035050,-500.0,0.00025068,2]
[355161334,1740939035061,-834.57,0.00025068,2]
[355161335,1740939035072,-705.22,0.00025068,2]
[355161336,1740939035083,-500.0,0.00025068,2]
[355161337,1740939035095,-500.0,0.00025068,2]
[355161338,1740939035105,-1244.05,0.00025068,2]
[355161339,1740939035118,-500.0,0.00025068,2]
[355161340,1740939035129,-818.12,0.00025068,2]
[355161341,1740939035139,-861.37,0.00025068,2]
[355161342,1740939035150,-500.0,0.00025068,2]
[355161343,1740939035161,-574.72,0.00025068,2]
[355161344,1740939035172,-638.22972742,0.00025068,2]
[355161345,1740939035182,-500.0,0.00025068,2]
[355161346,1740939035193,-539.64,0.00025068,2]
[355161347,1740939035205,-500.0,0.00025068,2]
[355161348,1740939035215,-500.0,0.00025069,2]
[355161349,1740939035225,-500.0,0.00025069,2]
[355161350,1740939035236,-500.0,0.00025069,2]
[355161351,1740939035247,-500.0,0.00025069,2]
[355161352,1740939035258,-500.0,0.00025069,2]
[355161353,1740939035269,-381.61598656,0.00025069,2]
[355161354,1740939035280,-500.0,0.00025069,2]
[355161355,1740939035291,-500.0,0.00025069,2]
[355161356,1740939035303,-500.0,0.00025069,2]
[355161357,1740939035313,-500.0,0.00025069,2]
[355161358,1740939035329,-500.0,0.00025069,2]
[355161359,1740939035341,-500.0,0.00025069,2]
[355161360,1740939035354,-500.0,0.00025069,2]
[355161361,1740939035366,-500.0,0.00025069,2]
[355161362,1740939035378,-500.0,0.00025069,2]
[355161363,1740939035388,-500.0,0.00025069,2]
[355161364,1740939035400,-500.0,0.00025069,2]
[355161365,1740939035411,-500.0,0.00025069,2]
[355161366,1740939035422,-500.0,0.00025069,2]
[355161367,1740939035432,-500.0,0.00025069,2]
[355161368,1740939035444,-500.0,0.00025069,2]
[355161369,1740939035455,-500.0,0.00025069,2]
[355161370,1740939035466,-500.0,0.00025069,2]
[355161371,1740939035477,-421.41851195,0.00025069,2]
[355161372,1740939035487,-500.0,0.00025069,2]
[355161373,1740939035498,-500.0,0.00025069,2]
[355161374,1740939035510,-356.73,0.00025069,2]
[355161375,1740939035520,-500.0,0.00025069,2]
[355161376,1740939035530,-500.0,0.00025069,2]
[355161377,1740939035540,-629.9998569,0.00025069,2]
[355161378,1740939035550,-500.0,0.00025069,2]
[355161379,1740939035561,-362.56,0.00025069,2]
[355161380,1740939035571,-500.0,0.00025069,2]
[355161381,1740939035582,-500.0,0.00025069,2]
[355161382,1740939035592,-500.0,0.00025069,2]
[355161383,1740939035602,-500.0,0.00025069,2]
[355161384,1740939035616,-384.38,0.00025069,2]
[355161385,1740939035626,-500.0,0.00025069,2]
[355161386,1740939035636,-588.61537254,0.00025069,2]
[355161387,1740939035646,-629.68930823,0.00025069,2]
[355161388,1740939035658,-500.0,0.00025069,2]
[355161389,1740939035668,-500.0,0.00025069,2]
[355161390,1740939035679,-500.0,0.00025069,2]
[355161391,1740939035689,-500.0,0.00025069,2]
[355161392,1740939035700,-406.38737926,0.00025069,2]
[355161393,1740939035711,-500.0,0.00025069,2]
[355161394,1740939035722,-500.0,0.00025069,2]
[355161395,1740939035732,-500.0,0.00025069,2]
[355161396,1740939035743,-500.0,0.00025069,2]
[355161397,1740939035753,-500.0,0.00025069,2]
[355161398,1740939035764,-500.0,0.00025069,2]
[355161399,1740939035775,-500.0,0.00025069,2]
[355161400,1740939035786,-500.0,0.00025069,2]
[355161401,1740939035797,-500.0,0.00025069,2]
[355161402,1740939035808,-500.0,0.00025069,2]
[355161403,1740939035818,-500.0,0.00025069,2]
[355161404,1740939035829,-500.0,0.00025069,2]
[355161405,1740939035840,-500.0,0.00025069,2]
[355161406,1740939035851,-500.0,0.00025069,2]
[355161407,1740939035866,-500.0,0.00025069,2]
[355161408,1740939035879,-502.41665658,0.00025069,2]
[355161409,1740939035890,-500.0,0.00025069,2]
[355161410,1740939035902,-503.26,0.00025069,2]
[355161411,1740939035913,-500.0,0.00025069,2]
[355161412,1740939035924,-500.0,0.00025069,2]
[355161413,1740939035934,-502.85063877,0.00025069,2]
[355161414,1740939035946,-500.0,0.00025069,2]
[355161415,1740939035957,-500.0,0.00025069,2]
[355161416,1740939035967,-500.0,0.00025069,2]
[355161417,1740939035978,-500.0,0.00025069,2]
[355161418,1740939035989,-500.0,0.00025069,2]
[355161419,1740939036000,-500.0,0.00025069,2]
[355161420,1740939036011,-500.0,0.00025069,2]
[355161421,1740939036022,-500.0,0.00025069,2]
[355161422,1740939036033,-500.0,0.00025069,2]
[355161423,1740939036044,-500.0,0.00025069,2]
[355161424,1740939036055,-500.0,0.00025069,2]
[355161425,1740939036066,-500.0,0.00025069,2]
[355161426,1740939036077,-232.28872799,0.00025069,2]
[355161427,1740939036088,-500.0,0.00025069,2]
[355161428,1740939036099,-500.0,0.00025069,2]
[355161429,1740939036110,-320.4033992,0.00025069,2]
[355161430,1740939036123,-500.0,0.00025069,2]
[355161431,1740939036133,-500.0,0.00025069,2]
[355161432,1740939036144,-500.0,0.00025069,2]
[355161433,1740939036154,-500.0,0.00025069,2]
[355161434,1740939036165,-500.0,0.00025069,2]
[355161435,1740939036175,-500.0,0.00025069,2]
[355161436,1740939036186,-488.35619813,0.00025069,2]
[355161437,1740939036207,-11.64380187,0.00025069,2]
[355161438,1740939036218,-500.0,0.00025069,2]
[355161439,1740939036229,-500.0,0.00025069,2]
[355161440,1740939036240,-500.0,0.00025069,2]
[355161441,1740939036250,-500.0,0.00025069,2]
[355161442,1740939036261,-500.0,0.00025069,2]
[355161443,1740939036271,-500.0,0.00025069,2]
[355161444,1740939036282,-502.48360949,0.00025069,2]
[355161445,1740939036293,-750.0,0.00025069,2]
[355161446,1740939036303,-502.26706142,0.00025069,2]
[355161447,1740939036313,-500.0,0.00025069,2]
[355161448,1740939036325,-500.0,0.00025069,2]
[355161449,1740939036336,-500.0,0.00025069,2]
[355161450,1740939036350,-500.0,0.00025069,2]
[355161451,1740939036360,-500.0,0.00025069,2]
[355161452,1740939036373,-500.0,0.00025069,2]
[355161453,1740939036384,-500.0,0.00025069,2]
[355161454,1740939036394,-501.46508197,0.00025069,2]
[355161455,1740939036411,-500.0,0.00025069,2]
[355161456,1740939036423,-500.0,0.00025069,2]
[355161457,1740939036434,-500.0,0.00025069,2]
[355161458,1740939036445,-500.0,0.00025069,2]
[355161459,1740939036456,-500.0,0.00025069,2]
[355161460,1740939036467,-500.0,0.00025069,2]
[355161461,1740939036478,-500.0,0.00025069,2]
[355161462,1740939036490,-500.0,0.00025069,2]
[355161463,1740939036501,-313.12216197,0.00025069,2]
[355161464,1740939036511,-500.0,0.00025069,2]
[355161465,1740939036522,-500.0,0.00025069,2]
[355161466,1740939036533,-520.22,0.00025069,2]
[355161467,1740939036544,-500.0,0.00025069,2]
[355161468,1740939036555,-603.34,0.00025069,2]
[355161469,1740939036566,-500.0,0.00025069,2]
[355161470,1740939036577,-500.0,0.00025069,2]
[355161471,1740939036587,-235.09956185,0.00025069,2]
[355161472,1740939036598,-500.0,0.00025069,2]
[355161473,1740939036610,-500.0,0.00025069,2]
[355161474,1740939036624,-500.0,0.00025069,2]
[355161475,1740939036635,-500.0,0.00025069,2]
[355161476,1740939036646,-3256.71,0.00025069,2]
[355161477,1740939036657,-500.0,0.00025069,2]
[355161478,1740939036668,-500.0,0.00025069,2]
[355161479,1740939036679,-504.30413832,0.00025069,2]
[355161480,1740939036690,-500.0,0.00025069,2]
[355161481,1740939036700,-857.56,0.00025069,2]
[355161482,1740939036711,-500.0,0.00025069,2]
[355161483,1740939036722,-500.0,0.00025069,2]
[355161484,1740939036732,-500.0,0.00025069,2]
[355161485,1740939036743,-552.32,0.00025069,2]
[355161486,1740939036754,-500.0,0.00025069,2]
[355161487,1740939036764,-492.89606582,0.00025069,2]
[355161488,1740939036775,-1309.1,0.00025069,2]
[355161489,1740939036786,-500.0,0.00025069,2]
[355161490,1740939036796,-500.0,0.00025069,2]
[355161491,1740939036807,-780.81,0.00025069,2]
[355161492,1740939036817,-500.0,0.00025069,2]
[355161493,1740939036827,-500.0,0.00025069,2]
[355161494,1740939036838,-500.0,0.00025069,2]
[355161495,1740939036848,-500.0,0.00025069,2]
[355161496,1740939036859,-925.49,0.00025069,2]
[355161497,1740939036873,-500.0,0.00025069,2]
[355161498,1740939036885,-500.0,0.00025069,2]
[355161499,1740939036896,-500.0,0.00025069,2]
[355161500,1740939036913,-500.0,0.00025069,2]
[355161501,1740939036924,-500.0,0.00025069,2]
[355161502,1740939036936,-500.0,0.00025069,2]
[355161503,1740939036948,-711.07,0.00025069,2]
[355161504,1740939036960,-500.0,0.00025069,2]
[355161505,1740939036972,-500.0,0.00025069,2]
[355161506,1740939036984,-500.0,0.00025069,2]
[355161507,1740939036995,-500.0,0.00025069,2]
[355161508,1740939037006,-673.25,0.00025069,2]
[355161509,1740939037018,-500.0,0.00025069,2]
[355161510,1740939037030,-500.0,0.00025069,2]
[355161511,1740939037040,-500.0,0.00025069,2]
[355161512,1740939037051,-647.11,0.00025069,2]
[355161513,1740939037063,-927.56,0.00025069,2]
[355161514,1740939037075,-500.0,0.00025069,2]
[355161515,1740939037086,-814.36,0.00025069,2]
[355161516,1740939037098,-500.0,0.00025069,2]
[355161517,1740939037109,-485.30395412,0.00025069,2]
[355161518,1740939037124,-676.78,0.00025069,2]
[355161519,1740939037135,-500.0,0.00025069,2]
[355161520,1740939037146,-500.0,0.00025069,2]
[355161521,1740939037157,-500.0,0.00025069,2]
[355161522,1740939037168,-516.56,0.00025069,2]
[355161523,1740939037179,-500.0,0.00025069,2]
[355161524,1740939037190,-500.0,0.00025069,2]
[355161525,1740939037201,-500.0,0.00025069,2]
[355161526,1740939037212,-500.0,0.00025069,2]
[355161527,1740939037224,-500.0,0.00025069,2]
[355161528,1740939037234,-500.0,0.00025069,2]
[355161529,1740939037245,-410.67,0.00025069,2]
[355161530,1740939037256,-528.21,0.00025069,2]
[355161531,1740939037267,-500.0,0.00025069,2]
[355161532,1740939037278,-500.0,0.00025069,2]